fUSD/lending_fUSD_20241006
["ID","MTS","AMOUNT","RATE_DAILY","PERIOD"]
[339945853,1728180632077,-151.17,0.00010993,2]
[339945854,1728180632088,-464.63678172,0.00010999,2]
[339945855,1728180632101,-535.36321828,0.00010999,2]
[339945856,1728180632111,-170.592,0.00010999,2]
[339945857,1728180632121,-150.0,0.00010999,2]
[339945858,1728180632132,-56.43280811,0.00011,2]
[339945859,1728180632144,-1103.11072581,0.00011,2]
[339945860,1728180632156,-590.16069176,0.00011,2]
[339945861,1728180632169,-185245.01928469,0.00011,2]
[339945862,1728180632180,-65473.02201974,0.00011,2]
[339945863,1728180632193,-530.14499983,0.00011,2]
[339945864,1728180632208,-6168.6639082,0.00011,2]
[339945866,1728180632222,-798.80351269,0.00011,2]
[339945868,1728180632236,-966.43463374,0.00011,2]
[339945870,1728180632250,-618.03494291,0.00011,2]
[339945872,1728180632264,-939.33967685,0.00011,2]
[339945874,1728180632277,-741.32256616,0.00011,2]
[339945877,1728180632291,-341.42630098,0.00011,2]
[339945879,1728180632304,-925.07724057,0.00011,2]
[339945881,1728180632316,-1097.98670717,0.00011,2]
[339945883,1728180632329,-508.47198714,0.00011,2]
[339945895,1728180638272,-10863.70884588,0.00011,2]
[339945899,1728180640402,-4957.06848104,0.00011,2]
[339945900,1728180640416,-1266.16680261,0.00011,2]
[339945908,1728180643219,-445.41059929,0.00011,2]
[339945909,1728180643233,-715.30133553,0.00011,2]
[339945910,1728180643247,-1575.75,0.00011,2]
[339945912,1728180646192,-29458.265973,0.00011,2]
[339945913,1728180689928,1000.0,0.00010948,2]
[339945914,1728180760572,179.89968722,0.000109,2]
[339945915,1728180779623,173.94279504,0.000109,2]
[339945916,1728180803683,2694.27693141,0.000109,2]
[339945917,1728180825347,343.29183332,0.00010899,2]
[339945918,1728180830449,343.29183332,0.000109,2]
[339945919,1728180835376,343.29183332,0.000109,2]
[339945920,1728181034035,608.01,9.058e-05,2]
[339945921,1728181036984,334.37007395,0.00010899,2]
[339945922,1728181053408,371.79,0.00010927,2]
[339945923,1728181081571,190.64,0.00010927,2]
[339945924,1728181119774,3325.8329,0.000109,2]
[339945926,1728181145567,250.0,0.00010914,2]
[339945927,1728181175370,500.0,0.00010897,2]
[339945928,1728181187115,1852.42,0.00010905,2]
[339945929,1728181224754,200.0,0.00010924,2]
[339945930,1728181229084,2424.84923826,0.000109,2]
[339945931,1728181387391,2058.81,0.00010896,2]
[339945932,1728181434541,250.0,0.00010234,2]
[339945933,1728181519833,658.95,0.00010944,2]
[339945934,1728181536881,152.7642807,0.0001078,2]
[339945935,1728181544096,590.17,9.042e-05,2]
[339945936,1728181620664,245.12,0.00010243,2]
[339945937,1728181625666,-160.62,0.00010959,2]
[339945938,1728181625688,-146.47612798,0.00010974,2]
[339945939,1728181632382,4057.898496,0.00010919,2]
[339945940,1728181654484,2182.36431438,0.000109,2]
[339945941,1728181683448,250.0,0.0001024,2]
[339945942,1728181728988,840.0,0.00010241,2]
[339945946,1728181747725,445.75,0.00010241,2]
[339945951,1728181787388,3508.62,0.00010937,2]
[339945956,1728181831212,179.95,0.00010792,2]
[339945968,1728181832105,-164.37,0.00010959,2]
[339945969,1728181832115,-185.89,0.00010975,2]
[339945970,1728181832125,-200.0,0.00010978,2]
[339945971,1728181832134,-300.0,0.00010987,2]
[339945972,1728181832144,-3930.76268136,0.00010988,2]
[339945973,1728181832157,-434.83464649,0.00010988,2]
[339945974,1728181832276,-3788.54533529,0.00010988,2]
[339946017,1728181838467,-646.8411,0.00010988,2]
[339946018,1728181838479,-1661.97148999,0.00010988,2]
[339946019,1728181838492,-13437.04474687,0.00010988,2]
[339946020,1728181838502,-4599.0,0.0001099,2]
[339946021,1728181838512,-150.0,0.00010998,2]
[339946022,1728181838522,-171.06,0.00010998,2]
[339946023,1728181838531,-1000.0,0.00010999,2]
[339946024,1728181838542,-521.17,0.00010999,2]
[339946025,1728181838551,-150.99,0.00010999,2]
[339946026,1728181838560,-966.5,0.00010999,2]
[339946027,1728181838570,-2738.22684759,0.00010999,2]
[339946028,1728181838581,-165.747,0.00010999,2]
[339946029,1728181838592,-482.63202156,0.00010999,2]
[339946030,1728181838601,-299.99,0.00010999,2]
[339946031,1728181838611,-429.44,0.00010999,2]
[339946032,1728181838621,-863.15,0.00010999,2]
[339946033,1728181838633,-18733.20513859,0.00011,2]
[339946034,1728181838644,-48604.9202038,0.00011,2]
[339946038,1728181840486,-4283.97520983,0.00011,2]
[339946039,1728181840499,-804.81,0.00011,2]
[339946098,1728181843386,-21194.0593042,0.00011,2]
[339946103,1728181846079,-359.82967935,0.00011,2]
[339946104,1728181846092,-753.68927655,0.00011,2]
[339946105,1728181846104,-1280.81103182,0.00011,2]
[339946107,1728181859338,9324.1889,0.000109,2]
[339946108,1728181916412,6422.0802,0.000109,2]
[339946109,1728181983828,962.5376,0.000109,2]
[339946110,1728182076081,11890.9871,0.000109,2]
[339946111,1728182079708,3000.58387731,0.000109,2]
[339946112,1728182229365,584.53,8.882e-05,2]
[339946113,1728182258352,328.0,0.00010819,2]
[339946114,1728182269087,250.0,0.00010814,2]
[339946115,1728182296864,-182.13,0.00010952,2]
[339946116,1728182296946,150.0,0.000109,2]
[339946117,1728182296969,150.0,0.000109,2]
[339946118,1728182296990,150.0,0.000109,2]
[339946119,1728182297011,150.0,0.000109,2]
[339946120,1728182297033,281.3,0.000109,2]
[339946121,1728182297059,13711.3566,0.000109,2]
[339946122,1728182298086,223.94,0.00010793,2]
[339946123,1728182319395,150.0,0.00010904,2]
[339946124,1728182328307,182.2,0.00010793,2]
[339946125,1728182465963,23900.0,0.00010777,2]
[339946126,1728182505108,2700.52548957,0.000109,2]
[339946127,1728182570452,250.0,0.00010885,2]
[339946128,1728182607211,11514.0,0.00011,5]
[339946129,1728182608035,5027.0,0.000108,3]
[339946130,1728182650955,1245.82,0.00010931,2]
[339946131,1728182742490,566.04,9.063e-05,2]
[339946132,1728182802177,223.94,0.0001095,2]
[339946133,1728182803646,190.64,0.0001095,2]
[339946134,1728182858672,737.6,0.00010926,2]
[339946136,1728182926408,2500.0,0.00021,90]
[339946137,1728182930506,2430.47294064,0.000109,2]
[339946138,1728182931135,250.0,0.00010943,2]
[339946139,1728182956763,171.57283776,0.000109,2]
[339946147,1728183032239,-220.84854643,0.00010959,2]
[339946148,1728183032249,-265.04,0.00010959,2]
[339946149,1728183032259,-164.91,0.00010959,2]
[339946150,1728183032269,-150.0,0.00010959,2]
[339946153,1728183032278,-161.53,0.00010959,2]
[339946155,1728183032288,-3851.82105554,0.00010959,2]
[339946157,1728183032300,-683.64,0.00010959,2]
[339946173,1728183032440,-1476.74524255,0.00010959,2]
[339946175,1728183032450,-1001.53933998,0.00010999,2]
[339946177,1728183032461,-1604.68829747,0.00010999,2]
[339946179,1728183032471,-6710.32824011,0.00010999,2]
[339946181,1728183032481,-3794.85679965,0.00010999,2]
[339946182,1728183032491,-150.0,0.00010999,2]
[339946183,1728183032501,-524.0,0.00011,2]
[339946184,1728183032512,-127789.20846397,0.00011,2]
[339946185,1728183032524,-98855.85781854,0.00011,2]
[339946186,1728183032535,-8332.30664326,0.00011,2]
[339946187,1728183032547,-377.86782155,0.00011,2]
[339946188,1728183032559,-317.3004359,0.00011,2]
[339946189,1728183032571,-2534.578025,0.00011,2]
[339946222,1728183038505,-32539.99937189,0.00011,2]
[339946223,1728183038715,-282.66965167,0.00011,2]
[339946225,1728183040263,-5184.20181618,0.00011,2]
[339946226,1728183040456,-3422.99865,0.00011,2]
[339946227,1728183040468,-326.34903123,0.00011,2]
[339946228,1728183040480,-9041.73463526,0.00011,2]
[339946235,1728183043488,-1602.74999996,0.00011,2]
[339946236,1728183043501,-620.43,0.00011,2]
[339946237,1728183043512,-950.9093924,0.00011,2]
[339946238,1728183043524,-1545.0,0.00011,2]
[339946246,1728183046601,-849.08,0.00010959,2]
[339946247,1728183046613,-380.9191,0.00011,2]
[339946248,1728183046624,-6335.98451333,0.00011,2]
[339946249,1728183046637,-3059.95,0.00011,2]
[339946261,1728183084789,8226.312345,0.000109,2]
[339946262,1728183169773,219.0,0.00021,90]
[339946263,1728183249745,558.14,9.069e-05,2]
[339946264,1728183355748,2187.42564654,0.000109,2]
[339946265,1728183396110,275.0,0.000109,2]
[339946266,1728183406799,500.0,0.000109,2]
[339946267,1728183407126,779.0,0.000109,2]
[339946268,1728183413089,250.0,0.0001095,2]
[339946271,1728183623781,161.28046835,0.000109,2]
[339946272,1728183770381,539.41,8.974e-05,2]
[339946273,1728183781415,1968.68308194,0.000109,2]
[339946274,1728183879235,590.08,0.00010854,2]
[339946275,1728183887096,182.13,0.00010896,2]
[339946276,1728183892258,182.2,0.00010933,2]
[339946277,1728184102180,159.12,0.00010713,2]
[339946278,1728184102272,150.52765,0.00010824,2]
[339946279,1728184156880,10059.57,0.000102,2]
[339946282,1728184206242,1771.81477371,0.000109,2]
[339946285,1728184232454,-250.0,0.00010951,2]
[339946288,1728184232465,-160.61,0.00010959,2]
[339946290,1728184232474,-786.24,0.00010959,2]
[339946292,1728184232484,-300.0,0.00010968,2]
[339946293,1728184232494,-1118.06527095,0.00010969,2]
[339946294,1728184232504,-12210.59,0.00010969,2]
[339946295,1728184232513,-289.81,0.0001098,2]
[339946296,1728184232523,-934.0,0.0001099,2]
[339946297,1728184232533,-559.0,0.0001099,2]
[339946298,1728184232543,-150.28,0.0001099,2]
[339946299,1728184232553,-362.768,0.0001099,2]
[339946300,1728184232562,-554.0,0.0001099,2]
[339946301,1728184232571,-806.0,0.0001099,2]
[339946302,1728184232581,-150.0,0.00010992,2]
[339946303,1728184232591,-150.99,0.00010993,2]
[339946304,1728184232602,-569.08,0.00010993,2]
[339946305,1728184232611,-5175.62,0.00010993,2]
[339946306,1728184232621,-299.99,0.00010993,2]
[339946307,1728184232631,-999.99,0.00010993,2]
[339946308,1728184232641,-5902.715,0.00010993,2]
[339946309,1728184232650,-13512.0,0.00010993,2]
[339946310,1728184232660,-1153.725,0.00010993,2]
[339946311,1728184232669,-153.218,0.00010993,2]
[339946312,1728184232679,-177.937,0.00010999,2]
[339946313,1728184232692,-4012.3,0.00010999,2]
[339946314,1728184232702,-126698.58104938,0.00011,2]
[339946315,1728184232718,-3657.72930039,0.00011,2]
[339946316,1728184232729,-3301.82961264,0.00011,2]
[339946317,1728184232740,-2110.2732713,0.00011,2]
[339946318,1728184232752,-572.80994969,0.00011,2]
[339946322,1728184238698,-307.25000024,0.00011,2]
[339946323,1728184238900,-2082.44359574,0.00011,2]
[339946324,1728184238914,-1018.05164116,0.00011,2]
[339946325,1728184238928,-1185.34288774,0.00011,2]
[339946326,1728184238939,-11796.1912333,0.00011,2]
[339946327,1728184239100,-250.0,0.00011,2]
[339946356,1728184240673,-2654.30371118,0.00011,2]
[339946357,1728184240888,-2490.24195603,0.00011,2]
[339946371,1728184243629,-6533.13029811,0.00011,2]
[339946372,1728184243868,-444.87795018,0.00011,2]
[339946373,1728184243883,-67552.02367707,0.00011,2]
[339946374,1728184243897,-3153.26920755,0.00011,2]
[339946375,1728184243911,-1621.5,0.00011,2]
[339946380,1728184246643,-3286.72220894,0.00011,2]
[339946383,1728184247103,-7125.0,0.00011,2]
[339946384,1728184289858,279.355,0.000109,2]
[339946385,1728184308396,4212.9226,0.00010851,2]
[339946386,1728184356910,471.7099,0.000109,2]
[339946387,1728184396831,500.0,0.00010812,2]
[339946388,1728184397664,500.0,0.00010813,2]
[339946389,1728184398050,500.0,0.00010813,2]
[339946390,1728184431148,913.4699,0.000109,2]
[339946391,1728184584566,529.88,9.088e-05,2]
[339946392,1728184631609,2595.78758535,0.000109,2]
[339946393,1728184651974,278.3141,0.000109,2]
[339946394,1728184779707,-165.24,0.00010959,2]
[339946395,1728184779740,-150.0,0.00010999,2]
[339946396,1728184779772,-177.234,0.00010999,2]
[339946397,1728184779808,-3507.526,0.00011,2]
[339946398,1728184785962,299.8,8.968e-05,2]
[339946401,1728184868940,161.28046835,0.000109,2]
[339946406,1728184996268,500.0,0.00010813,2]
[339946412,1728185056912,2336.20882677,0.000109,2]
[339946413,1728185101614,511.24,9.061e-05,2]
[339946418,1728185230154,-165.02,0.00010959,2]
[339946419,1728185230176,-142.07739475,0.00010999,2]
[339946428,1728185345469,1259.31859366,0.000109,2]
[339946429,1728185345792,1259.31859366,0.000109,2]
[339946450,1728185431800,-396.48017172,0.00011,2]
[339946451,1728185431862,-412.95315396,0.00011,2]
[339946453,1728185431874,-280.56667432,0.00011,2]
[339946459,1728185437885,-726.18600058,0.00011,2]
[339946460,1728185437898,-844.05696798,0.00011,2]
[339946461,1728185437911,-1695.58212262,0.00011,2]
[339946465,1728185439657,-3143.7899154,0.00011,2]
[339946467,1728185439788,-708.90014644,0.00011,2]
[339946468,1728185439801,-34969.22801947,0.00011,2]
[339946469,1728185439813,-3241.38815,0.00011,2]
[339946497,1728185442672,-9718.74312821,0.00011,2]
[339946499,1728185442684,-293.44999981,0.00011,2]
[339946507,1728185442810,-67552.02367707,0.00011,2]
[339946508,1728185442823,-4750.00000002,0.00011,2]
[339946509,1728185442944,-27508.08392612,0.00011,2]
[339946515,1728185445664,-7368.6299918,0.00011,2]
[339946516,1728185445676,-3183.68271049,0.00011,2]
[339946517,1728185445689,-2905.771836,0.00011,2]
[339946518,1728185445814,-1221.7588,0.00011,2]
[339946519,1728185446175,-1552.725,0.00011,2]
[339946520,1728185449141,498.4753,0.000109,2]
[339946521,1728185457369,150.0,0.000109,2]
[339946522,1728185482162,2102.58794412,0.000109,2]
[339946523,1728185525334,577.51428629,0.0001045,2]
[339946524,1728185578342,-503.08992872,0.00010973,2]
[339946525,1728185578368,-502.78078168,0.00010973,2]
[339946526,1728185578392,-501.60705315,0.00010973,2]
[339946527,1728185578416,-9148.192966,0.00010995,2]
[339946528,1728185578444,-9100.56327045,0.00011,2]
[339946529,1728185591050,-203.35852713,0.00010973,2]
[339946530,1728185591075,-150.0,0.00010999,2]
[339946531,1728185591105,-9646.64147287,0.00011,2]
[339946532,1728185599722,-10000.0,0.00011,2]
[339946533,1728185630879,-10000.0,0.00011,2]
[339946534,1728185654764,-10000.0,0.00011,2]
[339946535,1728185667608,-10000.0,0.00011,2]
[339946536,1728185668950,-10000.0,0.00011,2]
[339946537,1728185670304,-10000.0,0.00011,2]
[339946538,1728185671474,-10000.0,0.00011,2]
[339946539,1728185675981,-10000.0,0.00011,2]
[339946540,1728185694215,10302.1769,0.00010873,2]
[339946541,1728185697554,813.42,9.014e-05,2]
[339946542,1728185719265,801.6483875,0.000109,2]
[339946543,1728185757621,404.0366,0.00010895,2]
[339946544,1728185796518,904.73,0.00010926,2]
[339946545,1728185798233,150.0,0.00011,3]
[339946546,1728185814411,2605.74,0.00010926,2]
[339946547,1728185881146,379.2103,0.000109,2]
[339946548,1728185903520,169.81,0.00010883,2]
[339946549,1728185907687,2793.36800979,0.000109,2]
[339946550,1728185910243,483.37,0.000109,2]
[339946551,1728185910551,483.37,0.00010903,2]
[339946552,1728185910664,483.37,0.00010906,2]
[339946553,1728185910876,483.37,0.00010909,2]
[339946554,1728185911077,483.37,0.00010912,2]
[339946555,1728185911283,483.37,0.00010915,2]
[339946556,1728185911511,483.37,0.00010917,2]
[339946557,1728185911932,483.37,0.0001092,2]
[339946558,1728185912373,483.37,0.00010923,2]
[339946559,1728185912581,483.37,0.00010926,2]
[339946560,1728185912777,483.37,0.00010929,2]
[339946561,1728185912982,483.37,0.00010932,2]
[339946562,1728185913202,483.37,0.00010935,2]
[339946563,1728185913431,483.37,0.00010938,2]
[339946564,1728185913759,483.37,0.00010941,2]
[339946565,1728185914007,483.37,0.00010943,2]
[339946566,1728185914212,483.37,0.00010946,2]
[339946567,1728185914429,483.37,0.00010949,2]
[339946568,1728185955091,5552.19,0.00010848,2]
[339946569,1728185979367,171.06,0.00010848,2]
[339946570,1728185979394,530.43,0.00010848,2]
[339946571,1728186028060,250.0,0.00010814,2]
[339946572,1728186048014,210.73,0.00010832,2]
[339946573,1728186101558,937.56,0.00010873,2]
[339946574,1728186162147,1000.0,0.00010872,2]
[339946575,1728186175383,1195.88,9.996e-05,2]
[339946576,1728186181231,810.02,0.00010898,2]
[339946577,1728186191467,658.5,0.00010916,2]
[339946578,1728186197988,-483.37,0.00010952,2]
[339946579,1728186198014,-483.37,0.00010955,2]
[339946580,1728186198039,-161.05,0.00010959,2]
[339946581,1728186198064,-300.0,0.00010961,2]
[339946582,1728186198088,-3572.21,0.00010962,2]
[339946583,1728186229683,206.49292276,0.00010863,2]
[339946584,1728186251871,783.54,9.071e-05,2]
[339946585,1728186332870,2514.03120882,0.000109,2]
[339946586,1728186459468,2033.47761143,0.000109,2]
[339946587,1728186492139,1265.75907761,0.000109,2]
[339946588,1728186527089,174.13,8.378e-05,2]
[339946589,1728186530411,-212.118,0.00010963,2]
[339946590,1728186530433,-195.78435676,0.0001098,2]
[339946591,1728186530455,-150.0,0.00010986,2]
[339946592,1728186530477,-442.09764324,0.00010999,2]
[339946593,1728186532144,-347.81425048,0.00010999,2]
[339946594,1728186532171,-652.18574952,0.00011,2]
[339946595,1728186533497,-1000.0,0.00011,2]
[339946596,1728186534965,-1000.0,0.00011,2]
[339946597,1728186536376,-1000.0,0.00011,2]
[339946598,1728186545355,-700.0,0.00011,2]
[339946599,1728186552039,197.51674702,0.000109,2]
[339946600,1728186556615,2658.901884,0.00010945,2]
[339946601,1728186622405,843.83938508,0.000109,2]
[339946602,1728186624251,206.28246704,0.000109,2]
[339946616,1728186631726,-9091.01,0.00011,2]
[339946617,1728186631744,-4890.75643994,0.00011,2]
[339946618,1728186631761,-16908.07270063,0.00011,2]
[339946619,1728186631775,-581.68427879,0.00011,2]
[339946626,1728186637917,-38901.80947826,0.00011,2]
[339946627,1728186638080,-1070.1255496,0.00011,2]
[339946650,1728186639704,-1816.06705901,0.00011,2]
[339946651,1728186639716,-9096.64373114,0.00011,2]
[339946652,1728186639729,-8947.21879473,0.00011,2]
[339946653,1728186639741,-8943.78386462,0.00011,2]
[339946654,1728186639753,-9077.54866152,0.00011,2]
[339946655,1728186639765,-8943.84023489,0.00011,2]
[339946656,1728186640087,-3116.93757521,0.00011,2]
[339946657,1728186640101,-1951.31988861,0.00011,2]
[339946658,1728186640113,-1452.25846956,0.00011,2]
[339946661,1728186640126,-79793.81852756,0.00011,2]
[339946663,1728186640138,-165012.71804154,0.00011,2]
[339946665,1728186640148,-52697.28195846,0.00011,2]
[339946666,1728186640250,-97.62026196,0.00011,2]
[339946667,1728186640884,10000.0,0.0001045,2]
[339946668,1728186641629,4621.4908,0.0001045,2]
[339946671,1728186642748,-2498.24280375,0.00011,2]
[339946672,1728186642760,-2151.55353911,0.00011,2]
[339946673,1728186642849,-509.44728721,0.00011,2]
[339946674,1728186642860,-301.25385499,0.00011,2]
[339946675,1728186642872,-4397.15146631,0.00011,2]
[339946676,1728186642896,-67552.02367707,0.00011,2]
[339946677,1728186642920,-18287.67331899,0.00011,2]
[339946678,1728186642931,-3514.27337315,0.00011,2]
[339946679,1728186643013,-6201.7,0.00011,2]
[339946681,1728186645720,-275.945603,0.00011,2]
[339946682,1728186645732,-6222.99803238,0.00011,2]
[339946683,1728186645989,-4504.45429376,0.00011,2]
[339946684,1728186652128,198.29940244,0.00010999,3]
[339946685,1728186656775,10000.0,0.0001045,2]
[339946686,1728186661950,250.0,0.00010471,2]
[339946687,1728186672277,173.507078,0.000109,2]
[339946688,1728186684364,10805.207443,0.000109,2]
[339946689,1728186693904,922.3891,0.000109,2]
[339946690,1728186697284,197.51674701,0.000109,2]
[339946691,1728186733097,967.72,0.00010446,2]
[339946692,1728186752775,562.55959004,0.000109,2]
[339946693,1728186758124,4324.65935716,0.000109,2]
[339946694,1728186780469,780.19,8.51e-05,2]
[339946695,1728186780663,780.19,0.00010774,2]
[339946696,1728186798198,3129.98,0.00010417,2]
[339946697,1728186809813,626.0,0.000109,2]
[339946698,1728186846520,3332.7026,0.000109,2]
[339946699,1728186865015,4311.7504,0.000109,2]
[339946700,1728186882980,375.0397267,0.000109,2]
[339946701,1728186894008,250.0,0.00010427,2]
[339946702,1728186908845,165.26853051,0.00010893,2]
[339946703,1728186913911,165.26853047,0.00010893,2]
[339946704,1728186914556,180.49715866,0.000109,2]
[339946705,1728186918859,165.26853047,0.00010893,2]
[339946706,1728186919425,23900.0,0.00010414,2]
[339946707,1728186923845,165.26853047,0.00010893,2]
[339946708,1728186928907,165.26853047,0.00010893,2]
[339946709,1728186934023,165.26853047,0.00010893,2]
[339946710,1728186939042,165.26853047,0.00010894,2]
[339946711,1728186943894,165.26853047,0.00010894,2]
[339946712,1728186949033,165.26853047,0.00010894,2]
[339946713,1728186953835,165.26853047,0.00010894,2]
[339946714,1728186959010,165.26853047,0.00010894,2]
[339946715,1728186963867,165.26853047,0.00010894,2]
[339946716,1728186975131,1000.0,0.00010431,2]
[339946717,1728186981922,156.29355679,0.00010873,2]
[339946718,1728187006580,3613.1808,0.000109,2]
[339946719,1728187013510,250.02648446,0.000109,2]
[339946720,1728187080016,828.5092,0.0001045,2]
[339946721,1728187083844,231.84,0.00010442,2]
[339946722,1728187143586,166.68432298,0.000109,2]
[339946723,1728187183425,3892.19342148,0.000109,2]
[339946724,1728187194865,179.76483876,0.000109,2]
[339946725,1728187205573,1000.0,0.00010945,2]
[339946726,1728187205905,1000.0,0.00010945,2]
[339946727,1728187206267,1000.0,0.00010945,2]
[339946728,1728187206863,1000.0,0.00010945,2]
[339946729,1728187207511,1000.0,0.00010945,2]
[339946730,1728187207939,867.5193,0.00010945,2]
[339946731,1728187227707,483.86,0.00010405,2]
[339946732,1728187250215,169.2339584,0.000109,2]
[339946733,1728187256842,414.882,0.000109,2]
[339946734,1728187282614,167.07,0.00010382,2]
[339946735,1728187282876,167.07,0.00010385,2]
[339946736,1728187283288,167.07,0.00010387,2]
[339946737,1728187283330,167.07,0.0001039,2]
[339946738,1728187283515,167.07,0.00010393,2]
[339946739,1728187283719,167.07,0.00010396,2]
[339946740,1728187283937,167.07,0.00010398,2]
[339946741,1728187284183,167.07,0.00010401,2]
[339946742,1728187284391,167.07,0.00010404,2]
[339946743,1728187284611,167.07,0.00010407,2]
[339946744,1728187284814,167.07,0.00010409,2]
[339946745,1728187285053,167.07,0.00010412,2]
[339946746,1728187285257,167.07,0.00010415,2]
[339946747,1728187285463,167.07,0.00010418,2]
[339946748,1728187285687,167.07,0.0001042,2]
[339946749,1728187285930,167.07,0.00010423,2]
[339946750,1728187286346,167.07,0.00010426,2]
[339946751,1728187286564,167.07,0.00010429,2]
[339946752,1728187286766,167.07,0.00010431,2]
[339946753,1728187286986,167.07,0.00010434,2]
[339946754,1728187307171,745.12,8.464e-05,2]
[339946755,1728187307378,745.12,0.00010728,2]
[339946756,1728187319895,173.23,8.306e-05,2]
[339946758,1728187340196,250.0,0.00010402,2]
[339946759,1728187349384,160.78836512,0.000109,2]
[339946764,1728187425713,23900.0,0.0001042,2]
[339946765,1728187467458,172.03,0.00010425,2]
[339946766,1728187475264,157.29423395,0.000109,2]
[339946767,1728187493585,200.0,0.00010444,2]
[339946768,1728187518746,250.0,0.00010414,2]
[339946769,1728187529300,11511.0,0.000103,5]
[339946770,1728187608863,4346.83762318,0.000109,2]
[339946771,1728187644809,384.75,0.00010436,2]
[339946772,1728187652061,492.8025774,0.00010859,2]
[339946782,1728187755823,157.2942339,0.000109,2]
[339946783,1728187811096,650.08,0.00010449,2]
[339946793,1728187831869,-157.56,0.00010959,2]
[339946794,1728187831879,-150.0,0.00010959,2]
[339946795,1728187831889,-165.24,0.00010959,2]
[339946796,1728187831898,-164.49,0.00010962,2]
[339946797,1728187831907,-300.0,0.00010978,2]
[339946798,1728187831917,-1266.31884502,0.00010979,2]
[339946799,1728187831974,-693.504,0.00010979,2]
[339946800,1728187832029,-6329.67762113,0.00010979,2]
[339946801,1728187832038,-204.579,0.00010979,2]
[339946802,1728187832047,-4891.05787685,0.0001099,2]
[339946803,1728187832056,-5465.3694654,0.00010994,2]
[339946804,1728187832065,-1650.8427397,0.00010994,2]
[339946805,1728187832074,-150.0,0.00010994,2]
[339946806,1728187832083,-626.0,0.00010995,2]
[339946807,1728187832092,-1297.0,0.00010995,2]
[339946808,1728187832101,-934.0,0.00010995,2]
[339946809,1728187832110,-558.597,0.00010995,2]
[339946810,1728187832118,-406.337,0.00010995,2]
[339946811,1728187832127,-1093.371,0.00010995,2]
[339946812,1728187832135,-150.0,0.00010995,2]
[339946814,1728187832145,-1178.713,0.00010995,2]
[339946816,1728187832154,-247.30645564,0.00010999,2]
[339946818,1728187832163,-3155.34936454,0.00010999,2]
[339946820,1728187832173,-35559.01509388,0.00011,2]
[339946823,1728187832194,-299.99,0.00011,2]
[339946837,1728187837995,-2565.4808823,0.00011,2]
[339947665,1728187849229,-560.50565751,0.00011,2]
[339947672,1728187849285,3094.7789,0.00010859,2]
[339947678,1728187849336,3189.57649262,0.0001045,2]
[339947695,1728187849497,-67552.02367707,0.00011,2]
[339947748,1728187850033,212.07,8.823e-05,2]
[339947806,1728187850642,713.12,9.125e-05,2]
[339947865,1728187851219,1158.82702267,0.00010999,3]
[339947871,1728187851267,1158.82702267,0.00010999,3]
[339947876,1728187851320,1158.82702267,0.00010999,3]